fUSD/lending_fUSD_20241221
["ID","MTS","AMOUNT","RATE_DAILY","PERIOD"]
[346186369,1734768643337,-1060.69716,0.00019345,2]
[346186385,1734768646193,-327.55795686,0.00019345,2]
[346186386,1734768646203,-73.37015169,0.00019345,2]
[346186387,1734768646399,-172.58189248,0.00019345,2]
[346186388,1734768646408,-24998.15777068,0.00019346,3]
[346186389,1734768646419,-3025.96956689,0.00019346,3]
[346186390,1734768646431,-8926.66434936,0.00019346,3]
[346186391,1734768646442,-49549.38617121,0.00019346,3]
[346186427,1734768903342,154.0,0.000199,30]
[346186428,1734768903659,154.0,0.000199,30]
[346186429,1734768908676,162.0,0.000199,30]
[346186430,1734769203727,154.0,0.000199,30]
[346186431,1734769204020,154.0,0.000199,30]
[346186432,1734769204318,162.0,0.000199,30]
[346186433,1734769209875,161.97,0.00018491,30]
[346186435,1734769281072,296.81130855,0.00010137,2]
[346186436,1734769281094,29.45869145,0.00010137,2]
[346186437,1734769315907,1000.0,0.00019444,30]
[346186438,1734769483638,2000.0,0.0002022,120]
[346186439,1734769503323,154.0,0.000199,30]
[346186440,1734769503582,154.0,0.000199,30]
[346186441,1734769503787,163.4786125,0.000199,30]
[346186444,1734769626103,-450.0,0.00013,2]
[346186445,1734769626125,-79885.15111591,0.00013,2]
[346186450,1734769804241,155.0,0.000199,30]
[346186451,1734769804599,155.0,0.000199,30]
[346186452,1734769804891,155.0,0.000199,30]
[346186453,1734769805193,155.0,0.000199,30]
[346186454,1734769805505,155.0,0.000199,30]
[346186455,1734769805818,155.0,0.000199,30]
[346186470,1734769835704,-26168.62596509,0.00013,2]
[346186471,1734769835716,-5040.95174847,0.00013,2]
[346186472,1734769835732,-703.38582669,0.00013,2]
[346186473,1734769835742,-4970.17560318,0.00013,2]
[346186499,1734769838248,-533.5,0.00013,2]
[346186500,1734769838260,-47039.9983567,0.00013,2]
[346186501,1734769838270,-808.1,0.00016406,2]
[346186502,1734769838281,-326.27,0.00016813,2]
[346186503,1734769838290,-1500.0,0.00017895,2]
[346186504,1734769838299,-467.2,0.00017926,2]
[346186505,1734769838308,-184.76,0.00017939,2]
[346186506,1734769838317,-1000.0,0.00018035,2]
[346186507,1734769838327,-250.0,0.00018118,2]
[346186508,1734769838336,-5925.33362208,0.0001813,2]
[346186509,1734769838348,-17974.66637792,0.0001813,2]
[346186510,1734769838357,-1663.46894486,0.00018285,2]
[346186511,1734769838369,-178.11105514,0.00018285,2]
[346186512,1734769838379,-150.87,0.00018292,2]
[346186513,1734769838388,-484.28,0.00018298,2]
[346186514,1734769838398,-250.0,0.00018442,2]
[346186515,1734769838407,-400.0,0.000185,6]
[346186516,1734769838417,-800.0,0.000186,6]
[346186517,1734769838426,-808.1,0.0001867,2]
[346186518,1734769838435,-1200.0,0.000187,6]
[346186519,1734769838444,-1600.0,0.000188,6]
[346186520,1734769838454,-184.76,0.00018836,2]
[346186521,1734769838464,-167.81,0.00018862,2]
[346186522,1734769838473,-2000.0,0.000189,6]
[346186523,1734769838484,-417.0985379,0.00018952,2]
[346186524,1734769838494,-5237.167,0.00019075,2]
[346186525,1734769838504,-17426.17320211,0.00019099,2]
[346186526,1734769838513,-287.97180387,0.00019099,2]
[346186527,1734769838523,-890.65891962,0.00019099,2]
[346186528,1734769838532,-2500.0,0.000191,2]
[346186529,1734769838542,-158.51714257,0.000191,2]
[346186530,1734769838551,-171.20183796,0.000191,2]
[346186531,1734769838561,-843.58834969,0.000191,2]
[346186532,1734769838570,-388.2472212,0.000191,2]
[346186533,1734769838580,-188.78610529,0.000191,2]
[346186534,1734769838590,-17426.17320211,0.00019118,2]
[346186535,1734769838599,-6124.19057925,0.00019137,2]
[346186536,1734769838611,-385.87238127,0.00019137,2]
[346186537,1734769838622,-643.49673704,0.00019137,2]
[346186538,1734769838662,-6106.32495293,0.00019137,2]
[346186539,1734769838681,-366.9900652,0.00019137,2]
[346186540,1734769838693,-3799.29848642,0.00019137,2]
[346186541,1734769838702,-1588.59,0.00019146,2]
[346186542,1734769838712,-843.58834963,0.00019146,2]
[346186543,1734769838721,-3000.0,0.0001915,2]
[346186544,1734769838731,-17426.17320211,0.00019156,2]
[346186545,1734769838741,-1588.59,0.00019165,2]
[346186546,1734769838750,-1588.59,0.00019168,2]
[346186547,1734769838760,-1588.59,0.00019168,2]
[346186548,1734769838769,-1588.59,0.00019168,2]
[346186549,1734769838779,-17426.17320211,0.00019175,2]
[346186550,1734769838789,-2006.63,0.00019178,2]
[346186551,1734769838799,-500.0,0.00019178,2]
[346186552,1734769838809,-500.0,0.00019178,2]
[346186553,1734769838819,-2236.16,0.00019178,2]
[346186554,1734769838829,-1041.22,0.00019178,2]
[346186555,1734769838839,-1756.06,0.00019178,2]
[346186556,1734769838848,-500.0,0.00019178,2]
[346186557,1734769838859,-500.0,0.00019178,2]
[346186558,1734769838869,-3286.21,0.00019178,2]
[346186559,1734769838879,-3384.13,0.00019178,2]
[346186560,1734769838891,-3504.58,0.00019178,2]
[346186561,1734769838900,-1682.69,0.00019178,2]
[346186562,1734769838910,-500.0,0.00019178,2]
[346186563,1734769838921,-4268.95,0.00019178,2]
[346186564,1734769838932,-1837.3,0.00019178,2]
[346186565,1734769838941,-500.0,0.00019178,2]
[346186566,1734769838951,-1195.99,0.00019178,2]
[346186567,1734769838960,-1493.08,0.00019178,2]
[346186568,1734769838969,-2337.63,0.00019178,2]
[346186569,1734769838981,-30824.23,0.00019178,2]
[346186570,1734769838990,-1086.39,0.00019178,2]
[346186571,1734769838999,-500.0,0.00019178,2]
[346186572,1734769839009,-1126.87,0.00019178,2]
[346186573,1734769839020,-1124.1,0.00019178,2]
[346186574,1734769839031,-1271.09,0.00019178,2]
[346186575,1734769839044,-500.0,0.00019178,2]
[346186576,1734769839053,-615.26,0.00019178,2]
[346186577,1734769839063,-500.0,0.00019178,2]
[346186578,1734769839072,-1588.59,0.0001918,2]
[346186579,1734769839082,-1588.59,0.00019184,2]
[346186580,1734769839091,-150.65,0.00019189,2]
[346186581,1734769839100,-1588.59,0.00019189,2]
[346186582,1734769839110,-1588.59,0.00019189,2]
[346186583,1734769839120,-1588.59,0.00019189,2]
[346186584,1734769839130,-22649.76153615,0.0001919,2]
[346186585,1734769839141,-150.65,0.0001919,2]
[346186586,1734769839150,-161.88817481,0.0001919,2]
[346186587,1734769839160,-843.58834963,0.00019193,2]
[346186588,1734769839169,-17426.17320211,0.00019194,2]
[346186589,1734769839178,-500.0,0.00019198,2]
[346186590,1734769839188,-500.0,0.00019198,2]
[346186591,1734769839197,-500.0,0.00019198,2]
[346186592,1734769839208,-500.0,0.00019198,2]
[346186593,1734769839218,-500.0,0.00019198,2]
[346186594,1734769839227,-500.0,0.00019198,2]
[346186595,1734769839238,-527.43861454,0.00019198,2]
[346186596,1734769839247,-506.58682089,0.00019198,2]
[346186597,1734769839258,-500.0,0.00019198,2]
[346186598,1734769839268,-500.0,0.00019198,2]
[346186599,1734769839278,-509.61640796,0.00019198,2]
[346186600,1734769839287,-439.34574576,0.00019199,2]
[346186601,1734769839296,-500.0,0.00019199,2]
[346186602,1734769839306,-500.0,0.00019199,2]
[346186603,1734769839316,-189.73067647,0.00019199,2]
[346186604,1734769839325,-500.0,0.00019199,2]
[346186605,1734769839335,-3893.2214332,0.00019199,2]
[346186606,1734769839344,-500.0,0.00019199,2]
[346186607,1734769839354,-670.15,0.00019199,2]
[346186608,1734769839363,-2498.82,0.00019199,2]
[346186609,1734769839373,-534.2,0.00019199,2]
[346186610,1734769839382,-989.16,0.00019199,2]
[346186611,1734769839392,-1704.38,0.00019199,2]
[346186612,1734769839402,-155.072584,0.00019199,2]
[346186613,1734769839411,-153.080297,0.00019199,2]
[346186614,1734769839420,-1850.446606,0.00019199,2]
[346186615,1734769839429,-1732.72,0.00019199,2]
[346186616,1734769839438,-500.0,0.00019199,2]
[346186617,1734769839448,-1409.43,0.00019199,2]
[346186618,1734769839457,-2295.414532,0.00019199,2]
[346186619,1734769839466,-2264.0,0.00019199,2]
[346186620,1734769839476,-788.06,0.00019199,2]
[346186621,1734769839486,-624.58,0.00019199,2]
[346186622,1734769839496,-2855.29,0.00019199,2]
[346186623,1734769839506,-500.0,0.00019199,2]
[346186624,1734769839516,-500.0,0.00019199,2]
[346186625,1734769839525,-509.53,0.00019199,2]
[346186626,1734769839534,-1040.51,0.00019199,2]
[346186627,1734769839545,-500.0,0.00019199,2]
[346186628,1734769839554,-2075.7,0.00019199,2]
[346186629,1734769839564,-1269.52,0.00019199,2]
[346186630,1734769839573,-7720.01,0.00019199,2]
[346186631,1734769839582,-500.0,0.00019199,2]
[346186632,1734769839592,-1581.9,0.00019199,2]
[346186633,1734769839602,-1508.43,0.00019199,2]
[346186634,1734769839611,-500.0,0.00019199,2]
[346186635,1734769839620,-1248.42,0.00019199,2]
[346186636,1734769839629,-4712.38,0.00019199,2]
[346186637,1734769839638,-7848.69,0.00019199,2]
[346186638,1734769839648,-158.587973,0.00019199,2]
[346186639,1734769839658,-2305.0,0.00019199,2]
[346186640,1734769839668,-500.0,0.00019199,2]
[346186641,1734769839677,-500.0,0.00019199,2]
[346186642,1734769839687,-152.502651,0.00019199,2]
[346186643,1734769839696,-157.564534,0.00019199,2]
[346186644,1734769839705,-500.0,0.00019199,2]
[346186645,1734769839714,-153.376122,0.00019199,2]
[346186646,1734769839724,-500.0,0.00019199,2]
[346186647,1734769839734,-8230.89,0.00019199,2]
[346186648,1734769839743,-1817.88,0.00019199,2]
[346186649,1734769839753,-154.037807,0.00019199,2]
[346186650,1734769839762,-2838.1419,0.000192,2]
[346186651,1734769839771,-5000.0,0.000192,2]
[346186652,1734769839781,-1607123.07468346,0.000192,2]
[346186653,1734769839790,-840.8516,0.000192,2]
[346186654,1734769839799,-436.91,0.00019205,2]
[346186655,1734769839808,-770.39,0.00019205,2]
[346186656,1734769839818,-436.91,0.00019205,2]
[346186657,1734769839827,-436.91,0.00019205,2]
[346186658,1734769839836,-805.59,0.00019205,2]
[346186659,1734769839846,-436.91,0.00019205,2]
[346186660,1734769839856,-770.39,0.00019205,2]
[346186661,1734769839865,-4086.011,0.00019207,2]
[346186662,1734769839875,-224.847,0.00019207,2]
[346186663,1734769839884,-287.9718038,0.00019211,2]
[346186664,1734769839894,-17426.17320211,0.00019213,2]
[346186665,1734769839903,-17426.17320211,0.00019232,2]
[346186666,1734769839912,-843.58834963,0.00019239,2]
[346186667,1734769839921,-12595.7023,0.00019246,2]
[346186668,1734769839930,-851.93996384,0.00019246,2]
[346186669,1734769839939,-1140.798,0.00019246,2]
[346186670,1734769839949,-1000.0,0.00019246,2]
[346186671,1734769839958,-500.0,0.00019246,2]
[346186672,1734769839967,-17426.17320211,0.00019251,2]
[346186673,1734769839976,-17426.17320211,0.0001927,2]
[346186674,1734769839988,-843.58834963,0.00019286,2]
[346186675,1734769839998,-300.0,0.00019296,2]
[346186676,1734769840007,-1006.76,0.00019299,2]
[346186677,1734769840016,-506.3530216,0.00019299,2]
[346186678,1734769840025,-1107.72,0.00019299,2]
[346186679,1734769840038,-377.27378231,0.00019299,2]
[346186680,1734769840047,-500.0,0.00019299,2]
[346186681,1734769840056,-500.0,0.00019299,2]
[346186682,1734769840066,-500.0,0.00019299,2]
[346186683,1734769840075,-510.61850444,0.00019299,2]
[346186684,1734769840084,-510.14894529,0.00019299,2]
[346186685,1734769840094,-500.0,0.00019299,2]
[346186686,1734769840103,-500.0,0.00019299,2]
[346186687,1734769840114,-963.91,0.00019299,2]
[346186688,1734769840124,-500.0,0.00019299,2]
[346186689,1734769840133,-505.16689425,0.00019299,2]
[346186690,1734769840143,-500.0,0.00019299,2]
[346186691,1734769840152,-500.0,0.00019299,2]
[346186692,1734769840161,-500.0,0.00019299,2]
[346186693,1734769840171,-500.0,0.00019299,2]
[346186694,1734769840180,-505.44475195,0.00019299,2]
[346186695,1734769840189,-899.8,0.00019299,2]
[346186696,1734769840198,-352.22888533,0.00019299,2]
[346186697,1734769840207,-550.76,0.00019299,2]
[346186698,1734769840223,-500.0,0.00019299,2]
[346186699,1734769840236,-786.66,0.00019299,2]
[346186701,1734769840246,-500.0,0.00019299,2]
[346186702,1734769840256,-581.7,0.00019299,2]
[346186703,1734769840265,-531.56,0.00019299,2]
[346186704,1734769840274,-500.0,0.00019299,2]
[346186705,1734769840284,-500.0,0.00019299,2]
[346186706,1734769840293,-500.0,0.00019299,2]
[346186707,1734769840304,-500.0,0.00019299,2]
[346186708,1734769840314,-500.0,0.00019299,2]
[346186709,1734769840323,-500.0,0.00019299,2]
[346186710,1734769840333,-500.0,0.00019299,2]
[346186711,1734769840342,-501.89703599,0.00019299,2]
[346186712,1734769840352,-500.0,0.00019299,2]
[346186713,1734769840361,-500.0,0.00019299,2]
[346186714,1734769840370,-357.16889032,0.00019299,2]
[346186715,1734769840379,-180.0649147,0.00019299,2]
[346186716,1734769840389,-500.0,0.00019299,2]
[346186717,1734769840398,-817.02,0.00019299,2]
[346186718,1734769840408,-500.0,0.00019299,2]
[346186719,1734769840417,-500.0,0.00019299,2]
[346186720,1734769840426,-500.0,0.00019299,2]
[346186721,1734769840435,-506.54453462,0.00019299,2]
[346186722,1734769840446,-986.87,0.00019299,2]
[346186723,1734769840455,-500.0,0.00019299,2]
[346186724,1734769840464,-500.0,0.00019299,2]
[346186725,1734769840473,-908.9,0.00019299,2]
[346186726,1734769840484,-1018.49,0.00019299,2]
[346186727,1734769840494,-500.0,0.00019299,2]
[346186728,1734769840503,-1079.48,0.00019299,2]
[346186729,1734769840514,-264.14097157,0.00019299,2]
[346186730,1734769840525,-500.0,0.00019299,2]
[346186731,1734769840535,-498.69292853,0.00019299,2]
[346186732,1734769840545,-500.0,0.00019299,2]
[346186733,1734769840555,-525.98755396,0.00019299,2]
[346186734,1734769840565,-500.0,0.00019299,2]
[346186735,1734769840575,-500.0,0.00019299,2]
[346186736,1734769840585,-1322.87,0.00019299,2]
[346186737,1734769840595,-500.0,0.00019299,2]
[346186738,1734769840605,-500.0,0.00019299,2]
[346186739,1734769840614,-500.0,0.00019299,2]
[346186740,1734769840624,-500.0,0.00019299,2]
[346186741,1734769840634,-500.0,0.00019299,2]
[346186742,1734769840645,-500.0,0.00019299,2]
[346186743,1734769840654,-1111.98,0.00019299,2]
[346186744,1734769840664,-500.0,0.00019299,2]
[346186745,1734769840674,-1463.24,0.00019299,2]
[346186746,1734769840684,-500.0,0.00019299,2]
[346186747,1734769840694,-1272.79,0.00019299,2]
[346186748,1734769840703,-653.5,0.00019299,2]
[346186749,1734769840712,-500.0,0.00019299,2]
[346186750,1734769840722,-500.0,0.00019299,2]
[346186751,1734769840735,-1142.97,0.00019299,2]
[346186752,1734769840745,-500.0,0.00019299,2]
[346186753,1734769840754,-1214.5,0.00019299,2]
[346186754,1734769840764,-693.93,0.00019299,2]
[346186755,1734769840774,-500.0,0.00019299,2]
[346186756,1734769840783,-500.0,0.00019299,2]
[346186757,1734769840793,-500.0,0.00019299,2]
[346186758,1734769840803,-500.0,0.00019299,2]
[346186759,1734769840812,-500.0,0.00019299,2]
[346186760,1734769840822,-500.0,0.00019299,2]
[346186761,1734769840832,-535.74,0.00019299,2]
[346186762,1734769840842,-866.47,0.00019299,2]
[346186763,1734769840851,-500.0,0.00019299,2]
[346186764,1734769840861,-1062.63,0.00019299,2]
[346186765,1734769840870,-500.0,0.00019299,2]
[346186767,1734769840880,-500.0,0.00019299,2]
[346186768,1734769840889,-500.0,0.00019299,2]
[346186769,1734769840899,-500.0,0.00019299,2]
[346186770,1734769840908,-771.8,0.00019299,2]
[346186771,1734769840917,-500.0,0.00019299,2]
[346186772,1734769840927,-500.0,0.00019299,2]
[346186773,1734769840936,-500.0,0.00019299,2]
[346186774,1734769840945,-500.0,0.00019299,2]
[346186775,1734769840955,-500.0,0.00019299,2]
[346186777,1734769840965,-312.5398158,0.00019299,2]
[346186779,1734769840974,-296.81743887,0.00019299,2]
[346186781,1734769840985,-500.0,0.00019299,2]
[346186783,1734769840994,-594.86,0.00019299,2]
[346186785,1734769841003,-1067.07,0.00019299,2]
[346186786,1734769841014,-500.0,0.00019299,2]
[346186787,1734769841025,-521.59,0.00019299,2]
[346186788,1734769841040,-500.0,0.00019299,2]
[346186789,1734769841049,-500.0,0.00019299,2]
[346186790,1734769841059,-500.0,0.00019299,2]
[346186791,1734769841068,-1968.56,0.00019299,2]
[346186792,1734769841078,-897.44,0.00019299,2]
[346186793,1734769841087,-1678.37,0.00019299,2]
[346186794,1734769841097,-500.0,0.00019299,2]
[346186795,1734769841107,-500.87640194,0.00019299,2]
[346186796,1734769841116,-501.12806671,0.00019299,2]
[346186797,1734769841126,-500.0,0.00019299,2]
[346186798,1734769841135,-743.27,0.00019299,2]
[346186799,1734769841144,-500.0,0.00019299,2]
[346186800,1734769841153,-546.09591569,0.00019299,2]
[346186801,1734769841163,-1183.83,0.00019299,2]
[346186802,1734769841172,-1115.72,0.00019299,2]
[346186803,1734769841181,-637.53,0.00019299,2]
[346186804,1734769841191,-501.02877982,0.00019299,2]
[346186805,1734769841200,-500.0,0.00019299,2]
[346186806,1734769841209,-694.28,0.00019299,2]
[346186807,1734769841218,-1132.35,0.00019299,2]
[346186808,1734769841227,-720.98,0.00019299,2]
[346186809,1734769841238,-495.86405218,0.00019299,2]
[346186810,1734769841247,-500.0,0.00019299,2]
[346186811,1734769841256,-504.76804719,0.00019299,2]
[346186812,1734769841265,-500.0,0.00019299,2]
[346186813,1734769841274,-754.31,0.00019299,2]
[346186814,1734769841284,-1388.86,0.00019299,2]
[346186815,1734769841293,-1388.86,0.00019299,2]
[346186816,1734769841302,-1388.86,0.00019299,2]
[346186817,1734769841312,-1388.86,0.00019299,2]
[346186818,1734769841322,-1388.86,0.00019299,2]
[346186819,1734769841331,-1388.86,0.00019299,2]
[346186820,1734769841340,-1388.86,0.00019299,2]
[346186821,1734769841350,-1388.86,0.00019299,2]
[346186822,1734769841359,-1388.86,0.00019299,2]
[346186823,1734769841368,-1388.86,0.00019299,2]
[346186824,1734769841378,-1056.77,0.00019299,2]
[346186825,1734769841387,-1699.2,0.00019299,2]
[346186826,1734769841396,-958.54,0.00019299,2]
[346186827,1734769841405,-725.66,0.00019299,2]
[346186828,1734769841414,-500.0,0.00019299,2]
[346186829,1734769841423,-1303.37,0.00019299,2]
[346186830,1734769841432,-501.87045199,0.00019299,2]
[346186831,1734769841441,-1519.2,0.00019299,2]
[346186832,1734769841451,-1616.36,0.00019299,2]
[346186833,1734769841459,-1428.2,0.00019299,2]
[346186834,1734769841469,-503.45902391,0.00019299,2]
[346186835,1734769841478,-601.26,0.00019299,2]
[346186836,1734769841490,-854.19,0.00019299,2]
[346186837,1734769841499,-500.0,0.00019299,2]
[346186838,1734769841508,-500.0,0.00019299,2]
[346186839,1734769841518,-500.0,0.00019299,2]
[346186840,1734769841528,-500.0,0.00019299,2]
[346186841,1734769841538,-500.0,0.00019299,2]
[346186842,1734769841547,-500.0,0.00019299,2]
[346186843,1734769841556,-506.13320434,0.00019299,2]
[346186844,1734769841566,-514.03,0.00019299,2]
[346186845,1734769841575,-500.0,0.00019299,2]
[346186846,1734769841585,-573.08153092,0.00019299,2]
[346186847,1734769841594,-1403.09,0.00019299,2]
[346186848,1734769841604,-1542.93,0.00019299,2]
[346186849,1734769841614,-500.0,0.00019299,2]
[346186850,1734769841623,-500.0,0.00019299,2]
[346186851,1734769841633,-442.60479992,0.00019299,2]
[346186852,1734769841642,-500.0,0.00019299,2]
[346186853,1734769841652,-1934.91,0.00019299,2]
[346186854,1734769841661,-709.92,0.00019299,2]
[346186855,1734769841672,-507.70471327,0.00019299,2]
[346186856,1734769841682,-742.36,0.00019299,2]
[346186857,1734769841691,-500.0,0.00019299,2]
[346186858,1734769841701,-500.0,0.00019299,2]
[346186859,1734769841711,-2451.17,0.00019299,2]
[346186860,1734769841721,-500.0,0.00019299,2]
[346186861,1734769841733,-500.0,0.00019299,2]
[346186862,1734769841743,-500.0,0.00019299,2]
[346186863,1734769841753,-500.0,0.00019299,2]
[346186864,1734769841762,-500.0,0.00019299,2]
[346186865,1734769841772,-825.21,0.00019299,2]
[346186866,1734769841781,-1111.89,0.00019299,2]
[346186867,1734769841790,-500.0,0.00019299,2]
[346186868,1734769841799,-500.0,0.00019299,2]
[346186869,1734769841810,-1379.34,0.00019299,2]
[346186870,1734769841820,-500.0,0.00019299,2]
[346186871,1734769841829,-500.0,0.00019299,2]
[346186872,1734769841838,-4072.68,0.00019299,2]
[346186873,1734769841848,-1131.46,0.00019299,2]
[346186874,1734769841857,-500.0,0.00019299,2]
[346186875,1734769841866,-500.0,0.00019299,2]
[346186876,1734769841875,-4144.12,0.00019299,2]
[346186877,1734769841884,-500.0,0.00019299,2]
[346186878,1734769841893,-500.0,0.00019299,2]
[346186879,1734769841902,-168216.39199453,0.000193,2]
[346186880,1734769841911,-1075.0,0.00019315,2]
[346186881,1734769841920,-358.0,0.00019315,2]
[346186882,1734769841930,-287.9718038,0.00019322,2]
[346186883,1734769842129,-843.58834963,0.00019332,2]
[346186884,1734769842140,-9999.99,0.00019339,2]
[346186885,1734769842150,-299.99,0.00019339,7]
[346186886,1734769842160,-1515.73,0.00019339,2]
[346186887,1734769842169,-1101.52,0.00019339,2]
[346186888,1734769842179,-150.99,0.00019339,2]
[346186889,1734769842188,-999.99,0.00019339,2]
[346186890,1734769842198,-9999.99,0.00019339,2]
[346186891,1734769842208,-150.99,0.00019339,2]
[346186892,1734769842217,-3000.0,0.0001934,2]
[346186893,1734769842226,-3503.71,0.00019343,2]
[346186894,1734769842237,-1024.59,0.00019343,2]
[346186895,1734769842246,-3237.21,0.00019343,2]
[346186896,1734769842255,-500.0,0.00019343,2]
[346186897,1734769842265,-1388.86,0.00019343,2]
[346186898,1734769842274,-1586.97,0.00019343,2]
[346186899,1734769842283,-12398.30981131,0.00019344,2]
[346186900,1734769842293,-500.0,0.00019344,2]
[346186901,1734769842302,-500.0,0.00019344,2]
[346186902,1734769842312,-500.0,0.00019344,2]
[346186903,1734769842321,-500.0,0.00019344,2]
[346186904,1734769842330,-500.0,0.00019344,2]
[346186905,1734769842340,-500.0,0.00019344,2]
[346186906,1734769842349,-559.04993502,0.00019344,2]
[346186907,1734769842358,-500.0,0.00019344,2]
[346186908,1734769842368,-500.0,0.00019344,2]
[346186909,1734769842377,-500.0,0.00019344,2]
[346186910,1734769842388,-500.0,0.00019344,2]
[346186911,1734769842398,-500.0,0.00019344,2]
[346186912,1734769842407,-500.0,0.00019344,2]
[346186913,1734769842418,-500.0,0.00019344,2]
[346186914,1734769842429,-500.0,0.00019344,2]
[346186915,1734769842440,-500.0,0.00019344,2]
[346186916,1734769842450,-500.0,0.00019344,2]
[346186917,1734769842459,-507.28656186,0.00019344,2]
[346186918,1734769842468,-500.0,0.00019344,2]
[346186919,1734769842478,-500.0,0.00019344,2]
[346186920,1734769842489,-500.0,0.00019344,2]
[346186921,1734769842498,-428.04073358,0.00019344,2]
[346186922,1734769842509,-500.0,0.00019344,2]
[346186923,1734769842518,-500.0,0.00019344,2]
[346186924,1734769842528,-500.0,0.00019344,2]
[346186925,1734769842537,-500.0,0.00019344,2]
[346186926,1734769842547,-500.0,0.00019344,2]
[346186927,1734769842557,-500.0,0.00019344,2]
[346186928,1734769842566,-500.0,0.00019344,2]
[346186929,1734769842576,-500.0,0.00019344,2]
[346186930,1734769842586,-500.0,0.00019344,2]
[346186931,1734769842596,-500.0,0.00019344,2]
[346186932,1734769842606,-389.52912032,0.00019344,2]
[346186933,1734769842615,-500.0,0.00019344,2]
[346186934,1734769842625,-500.0,0.00019344,2]
[346186935,1734769842634,-500.0,0.00019344,2]
[346186936,1734769842644,-536.53107612,0.00019344,2]
[346186937,1734769842653,-500.0,0.00019344,2]
[346186938,1734769842663,-500.0,0.00019344,2]
[346186939,1734769842673,-500.0,0.00019344,2]
[346186940,1734769842682,-500.0,0.00019344,2]
[346186941,1734769842692,-500.0,0.00019344,2]
[346186942,1734769842702,-559.70070409,0.00019344,2]
[346186943,1734769842711,-500.0,0.00019344,2]
[346186944,1734769842721,-500.0,0.00019344,2]
[346186945,1734769842730,-500.0,0.00019344,2]
[346186946,1734769842742,-500.0,0.00019344,2]
[346186947,1734769842752,-500.0,0.00019344,2]
[346186948,1734769842762,-418.78660647,0.00019344,2]
[346186949,1734769842771,-500.0,0.00019344,2]
[346186950,1734769842781,-555.27,0.00019344,2]
[346186951,1734769842791,-527.71242517,0.00019344,2]
[346186952,1734769842801,-500.0,0.00019344,2]
[346186953,1734769842811,-500.0,0.00019344,2]
[346186954,1734769842820,-500.0,0.00019344,2]
[346186955,1734769842830,-500.0,0.00019344,2]
[346186956,1734769842840,-500.0,0.00019344,2]
[346186957,1734769842850,-500.0,0.00019344,2]
[346186958,1734769842859,-500.0,0.00019344,2]
[346186959,1734769842869,-500.0,0.00019344,2]
[346186960,1734769842878,-500.0,0.00019344,2]
[346186961,1734769842887,-500.0,0.00019344,2]
[346186962,1734769842897,-500.0,0.00019344,2]
[346186963,1734769842907,-500.0,0.00019344,2]
[346186964,1734769842917,-500.0,0.00019344,2]
[346186965,1734769842926,-500.0,0.00019344,2]
[346186966,1734769842936,-614.79,0.00019344,2]
[346186967,1734769842946,-500.0,0.00019344,2]
[346186968,1734769842955,-500.0,0.00019344,2]
[346186969,1734769842965,-500.0,0.00019344,2]
[346186970,1734769842974,-500.0,0.00019344,2]
[346186971,1734769842984,-500.0,0.00019344,2]